bitfinex-derivatives/quotes_BTCF0:USTF0_20250710
["timestamp","ask_amount","ask_price","bid_price","bid_amount"]
[1752134866325,1.79437322,111250.0,111240.0,0.0976343]
[1752134870527,1.82116925,111250.0,111240.0,0.0976343]
[1752134870726,1.82247925,111250.0,111240.0,0.0823143]
[1752134871423,1.82247925,111250.0,111240.0,0.06899783]
[1752134876231,1.79568636,111250.0,111240.0,0.0823145]
[1752134877832,1.79591398,111250.0,111240.0,0.0823145]
[1752134880730,1.79598375,111250.0,111240.0,0.0823145]
[1752134882632,1.31561029,111250.0,111240.0,0.0823145]
[1752134882832,1.79598375,111250.0,111240.0,0.0981845]
[1752134884137,1.79598144,111250.0,111240.0,0.0981845]
[1752134884635,1.79598144,111250.0,111240.0,0.09818592]
[1752134885638,1.71535375,111250.0,111240.0,0.09818592]
[1752134887240,1.79598944,111250.0,111240.0,0.09818592]
[1752134888149,1.79598944,111250.0,111240.0,0.08486783]
[1752134889742,1.31561598,111250.0,111240.0,0.08486783]
[1752134889942,1.82858944,111250.0,111240.0,0.06899783]
[1752134890242,1.82858944,111250.0,111240.0,0.08231829]
[1752134890443,1.58840271,111250.0,111240.0,0.08231829]
[1752134890741,1.82858944,111250.0,111240.0,0.08231829]
[1752134893356,1.80464944,111250.0,111240.0,0.08231829]
[1752134893545,1.82858944,111250.0,111240.0,0.08231829]
[1752134893937,2.06877617,111250.0,111240.0,0.01811829]
[1752134894144,1.48197249,111250.0,111240.0,0.01811829]
[1752134894341,1.96234595,111250.0,111240.0,0.01811829]
[1752134894645,1.98913084,111250.0,111240.0,0.01811829]
[1752134894847,1.98913084,111250.0,111240.0,0.00479783]
[1752134895548,2.22931757,111250.0,111240.0,0.00479783]
[1752134895942,1.98913084,111250.0,111240.0,0.00479783]
[1752134897547,2.22931757,111250.0,111240.0,0.00479783]
[1752134898047,1.98913084,111250.0,111240.0,0.00479783]
[1752134898351,1.99013084,111250.0,111240.0,0.00279783]
[1752134898948,1.99013084,111250.0,111240.0,0.00179783]
[1752134899147,1.99213084,111250.0,111240.0,0.00179783]
[1752134899950,2.23231757,111250.0,111240.0,0.00179783]
[1752134900249,1.99213084,111250.0,111240.0,0.00179783]
[1752134900749,1.96819084,111250.0,111240.0,0.00179783]
[1752134900951,1.99279084,111250.0,111240.0,0.00179783]
[1752134904154,1.99298104,111250.0,111240.0,0.00179783]
[1752134907761,2.23316777,111250.0,111240.0,0.00179783]
[1752134907961,1.99298104,111250.0,111240.0,0.00179783]
[1752134913876,1.99298717,111250.0,111240.0,0.00179783]
[1752134915774,2.5931739,111250.0,111240.0,0.00179783]
[1752134916379,2.35298717,111250.0,111240.0,0.00179783]
[1752134918078,2.37298717,111250.0,111240.0,0.00179783]
[1752134919480,2.35298717,111250.0,111240.0,0.00179783]
[1752134919680,1.99218717,111250.0,111240.0,0.00179783]
[1752134919977,2.71378717,111250.0,111240.0,0.00179783]
[1752134920178,2.71378717,111250.0,111240.0,0.03239783]
[1752134920382,2.68168717,111250.0,111240.0,0.03239783]
[1752134920573,2.68169918,111250.0,111240.0,0.03239783]
[1752134920770,2.65709918,111250.0,111240.0,0.03239783]
[1752134920975,2.68169918,111250.0,111240.0,0.03239783]
[1752134921681,2.62449918,111250.0,111240.0,0.03239783]
[1752134921979,2.64909918,111250.0,111240.0,0.03239783]
[1752134922983,2.61909918,111250.0,111240.0,0.03239783]
[1752134923382,2.5116786,111250.0,111240.0,0.03239783]
[1752134923682,2.61913743,111250.0,111240.0,0.03239783]
[1752134924484,2.66913743,111250.0,111240.0,0.03239783]
[1752134924978,2.64453743,111250.0,111240.0,0.03239783]
[1752134925184,2.66913743,111250.0,111240.0,0.03239783]
[1752134925386,2.5616786,111250.0,111240.0,0.03239783]
[1752134925885,2.66916975,111250.0,111240.0,0.03239783]
[1752134926483,2.5616786,111250.0,111240.0,0.03239783]
[1752134926685,2.69567172,111250.0,111240.0,0.03239783]
[1752134927985,2.67567172,111250.0,111240.0,0.03239783]
[1752134928288,2.65107172,111250.0,111240.0,0.03239783]
[1752134928586,2.67567172,111250.0,111240.0,0.03239783]
[1752134928784,2.65107172,111250.0,111240.0,0.03239783]
[1752134929281,2.67567172,111250.0,111240.0,0.03239783]
[1752134929485,2.66107172,111250.0,111240.0,0.03239783]
[1752134929785,2.68567172,111250.0,111240.0,0.03239783]
[1752134930987,2.65918261,111250.0,111240.0,0.03239783]
[1752134931989,2.5516786,111250.0,111240.0,0.03239783]
[1752134932986,2.5116786,111250.0,111240.0,0.03239783]
[1752134934387,2.64567172,111250.0,111240.0,0.03239783]
[1752134934586,2.68567172,111250.0,111240.0,0.03239783]
[1752134938078,2.63567172,111250.0,111240.0,0.03239783]
[1752134939485,2.68567172,111250.0,111240.0,0.03239783]
[1752134940791,2.66107172,111250.0,111240.0,0.03239783]
[1752134940995,2.68567172,111250.0,111240.0,0.03239783]
[1752134942992,2.31567172,111250.0,111240.0,0.03239783]
[1752134943292,2.64567172,111250.0,111240.0,0.03239783]
[1752134946893,2.31567172,111250.0,111240.0,0.03239783]
[1752134952793,2.29107172,111250.0,111240.0,0.00179783]
[1752134953094,0.1797459,111240.0,111230.0,0.034998]
[1752134953294,1.6574972,111240.0,111230.0,0.06450816]
[1752134953493,1.6574972,111240.0,111230.0,0.09710816]
[1752134953998,1.6100672,111240.0,111230.0,0.09710816]
[1752134954497,1.6110672,111240.0,111230.0,0.084668]
[1752134954890,1.71857208,111240.0,111230.0,0.084668]
[1752134956100,1.71857208,111240.0,111230.0,0.068598]
[1752134956305,1.71857208,111240.0,111230.0,0.084608]
[1752134959106,1.74272208,111240.0,111230.0,0.084608]
[1752134960398,1.71857208,111240.0,111230.0,0.084608]
[1752134961214,1.71862709,111240.0,111230.0,0.084608]
[1752134961402,1.74277709,111240.0,111230.0,0.084608]
[1752134961601,1.71862709,111240.0,111230.0,0.084608]
[1752134962101,1.61112221,111240.0,111230.0,0.084608]
[1752134962905,1.71855277,111240.0,111230.0,0.084608]
[1752134964902,1.71855277,111240.0,111230.0,0.068598]
[1752134965206,1.74270277,111240.0,111230.0,0.084608]
[1752134969416,1.63527221,111240.0,111230.0,0.09809733]
[1752134970017,1.99607221,111240.0,111230.0,0.09809733]
[1752134970413,1.27551202,111240.0,111230.0,0.09809733]
[1752134970815,1.99607221,111240.0,111230.0,0.08208733]
[1752134971615,1.27447221,111240.0,111230.0,0.08208733]
[1752134971820,1.99607221,111240.0,111230.0,0.08208733]
[1752134972321,1.99607221,111240.0,111230.0,0.068598]
[1752134974225,2.103488,111240.0,111230.0,0.068598]
[1752134977222,2.0700807,111240.0,111230.0,0.068598]
[1752134977524,1.96266491,111240.0,111230.0,0.068598]
[1752134979621,1.99607296,111240.0,111230.0,0.068598]
[1752134980733,1.97192296,111240.0,111230.0,0.068598]
[1752134980922,1.99607296,111240.0,111230.0,0.068598]
[1752134983032,1.99607649,111240.0,111230.0,0.068598]
[1752134984430,1.75588976,111240.0,111230.0,0.068598]
[1752134985827,2.38472976,111240.0,111230.0,0.084608]
[1752134986130,2.36057976,111240.0,111230.0,0.084608]
[1752134986331,2.38472976,111240.0,111230.0,0.084608]
[1752134986928,2.46536101,111240.0,111230.0,0.084608]
[1752134988732,2.43194943,111240.0,111230.0,0.084608]
[1752134989034,2.46542249,111240.0,111230.0,0.084608]
[1752134989235,2.46542249,111240.0,111230.0,0.09815606]
[1752134989533,2.38479124,111240.0,111230.0,0.09815606]
[1752134990735,2.36064124,111240.0,111230.0,0.08214606]
[1752134990936,2.36064124,111240.0,111230.0,0.09797606]
[1752134991340,2.38518124,111240.0,111230.0,0.09797606]
[1752134991537,2.36064124,111240.0,111230.0,0.09797606]
[1752134991838,2.38518124,111240.0,111230.0,0.09797606]
[1752134993837,1.90480778,111240.0,111230.0,0.09797606]
[1752134994034,2.38518124,111240.0,111230.0,0.09797606]
[1752134995741,2.49267011,111240.0,111230.0,0.09797606]
[1752134996338,2.46813011,111240.0,111230.0,0.09797606]
[1752134996637,2.49267011,111240.0,111230.0,0.09797606]
[1752134996837,2.46813011,111240.0,111230.0,0.084428]
[1752134997138,2.49267011,111240.0,111230.0,0.084428]
[1752134997539,2.46813011,111240.0,111230.0,0.084428]
[1752134997738,2.49267011,111240.0,111230.0,0.084428]
[1752134999541,2.13187011,111240.0,111230.0,0.084428]
[1752134999741,1.65149665,111240.0,111230.0,0.084428]
[1752134999938,2.13187011,111240.0,111230.0,0.084428]
[1752135000240,2.15075214,111240.0,111230.0,0.084428]
[1752135000743,2.15075214,111240.0,111230.0,0.068598]
[1752135000942,2.12621214,111240.0,111230.0,0.068598]
[1752135001631,2.15075214,111240.0,111230.0,0.068598]
[1752135002844,1.67037868,111240.0,111230.0,0.068598]
[1752135003041,2.15075214,111240.0,111230.0,0.068598]
[1752135006658,1.52191214,111240.0,111230.0,0.0821453]
[1752135006953,2.15059214,111240.0,111230.0,0.0821453]
[1752135007154,2.00963021,111240.0,111230.0,0.0821453]
[1752135007952,1.38095021,111240.0,111230.0,0.0821453]
[1752135008154,2.00963021,111240.0,111230.0,0.0821453]
[1752135008754,2.00963021,111240.0,111230.0,0.068598]
[1752135010761,1.98509021,111240.0,111230.0,0.068598]
[1752135010955,2.00963021,111240.0,111230.0,0.068598]
[1752135013664,1.98509021,111240.0,111230.0,0.068598]
[1752135014864,1.50471675,111240.0,111230.0,0.068598]
[1752135015064,1.98509021,111240.0,111230.0,0.068598]
[1752135015658,2.00963021,111240.0,111230.0,0.068598]
[1752135015855,1.64883021,111240.0,111230.0,0.068598]
[1752135016058,2.00963021,111240.0,111230.0,0.068598]
[1752135020769,1.98509021,111240.0,111230.0,0.068598]
[1752135020964,2.00888021,111240.0,111230.0,0.068598]
[1752135023869,1.64808021,111240.0,111230.0,0.068598]
[1752135024069,2.00888021,111240.0,111230.0,0.068598]
[1752135030773,1.98509021,111240.0,111230.0,0.068598]
[1752135030973,2.00888021,111240.0,111230.0,0.068598]
[1752135032277,2.14994937,111240.0,111230.0,0.068598]
[1752135034780,1.78914937,111240.0,111230.0,0.068598]
[1752135034979,2.14994937,111240.0,111230.0,0.068598]
[1752135037879,1.66957591,111240.0,111230.0,0.068598]
[1752135038080,2.14994937,111240.0,111230.0,0.068598]
[1752135038880,1.78914937,111240.0,111230.0,0.068598]
[1752135039081,2.14994937,111240.0,111230.0,0.068598]
[1752135040881,2.14546937,111240.0,111230.0,0.068598]
[1752135042385,2.14546453,111240.0,111230.0,0.068598]
[1752135043280,1.66509107,111240.0,111230.0,0.068598]
[1752135043478,2.14546453,111240.0,111230.0,0.068598]
[1752135046886,2.12167453,111240.0,111230.0,0.068598]
[1752135047089,2.14479453,111240.0,111230.0,0.068598]
[1752135050189,2.14479453,111240.0,111230.0,0.08213669]
[1752135054091,2.14479453,111240.0,111230.0,0.068598]
[1752135054494,2.12167453,111240.0,111230.0,0.068598]
[1752135054695,1.52059453,111240.0,111230.0,0.068598]
[1752135054886,1.60308863,111240.0,111230.0,0.09966667]
[1752135055093,1.67529747,111240.0,111230.0,0.09966667]
[1752135055688,2.03609747,111240.0,111230.0,0.09966667]
[1752135057198,2.1167556,111240.0,111230.0,0.09966667]
[1752135058198,2.0936356,111240.0,111230.0,0.09966667]
[1752135060797,2.0936356,111240.0,111230.0,0.08313667]
[1752135060996,2.0936356,111240.0,111230.0,0.09966667]
[1752135062498,2.1167556,111240.0,111230.0,0.09966667]
[1752135063800,2.1167556,111240.0,111230.0,0.09987177]
[1752135064999,2.1167556,111240.0,111230.0,0.08334177]
[1752135069902,1.63638214,111240.0,111230.0,0.08334177]
[1752135070099,2.1167556,111240.0,111230.0,0.08334177]
[1752135070702,2.0936356,111240.0,111230.0,0.08334177]
[1752135070900,2.1167556,111240.0,111230.0,0.08334177]
[1752135072507,2.1167556,111240.0,111230.0,0.069598]
[1752135072806,2.1167556,111240.0,111230.0,0.08329254]
[1752135073396,2.0936356,111240.0,111230.0,0.08329254]
[1752135073598,2.1167556,111240.0,111230.0,0.08329254]
[1752135075308,1.80114678,111240.0,111230.0,0.08329254]
[1752135077308,1.77802678,111240.0,111230.0,0.08329254]
[1752135077508,1.80096678,111240.0,111230.0,0.08329254]
[1752135080706,1.77802678,111240.0,111230.0,0.08329254]
[1752135081009,1.68678149,111240.0,111230.0,0.08329254]
[1752135083017,1.71708149,111240.0,111230.0,0.08329254]
[1752135086124,1.8584243,111240.0,111230.0,0.08329254]
[1752135086627,1.8354843,111240.0,111230.0,0.01749254]
[1752135086928,1.8637698,111240.0,111230.0,0.002798]
[1752135087129,2.21045261,111240.0,111230.0,0.01654691]
[1752135087429,2.10293201,111240.0,111230.0,0.01664548]
[1752135088222,2.10293201,111240.0,111230.0,0.002798]
[1752135088426,2.10193201,111240.0,111230.0,0.002798]
[1752135088627,2.10393201,111240.0,111230.0,0.002798]
[1752135089225,1.48089201,111240.0,111230.0,0.002798]
[1752135089528,2.10665201,111240.0,111230.0,0.01658642]
[1752135090222,2.08471201,111240.0,111230.0,0.01558642]
[1752135090427,2.10765201,111240.0,111230.0,0.0155777]
[1752135091026,0.1797622,111230.0,111220.0,0.0308]
[1752135091228,0.91128415,111230.0,111220.0,0.0611297]
[1752135092226,1.01130294,111230.0,111220.0,0.04735]
[1752135092626,1.03424294,111230.0,111220.0,0.04735]
[1752135093328,1.03524294,111230.0,111220.0,0.07985]
[1752135094428,0.79505621,111230.0,111220.0,0.07985]
[1752135094730,1.27642967,111230.0,111220.0,0.07985]
[1752135095030,1.27742967,111230.0,111220.0,0.07985]
[1752135095831,0.79705621,111230.0,111220.0,0.07985]
[1752135096027,1.39471359,111230.0,111220.0,0.33380762]
[1752135096331,1.39471359,111230.0,111220.0,0.09362089]
[1752135096332,1.63490032,111230.0,111220.0,0.09362089]
[1752135098434,1.63490032,111230.0,111220.0,0.07985]
[1752135098830,1.87508705,111230.0,111220.0,0.07985]
[1752135099127,1.63490032,111230.0,111220.0,0.07985]
[1752135099333,1.66196294,111230.0,111220.0,0.07985]
[1752135099828,1.42177621,111230.0,111220.0,0.07985]
[1752135100033,1.66196294,111230.0,111220.0,0.07985]
[1752135100733,1.62276294,111230.0,111220.0,0.0633]
[1752135100933,1.64570294,111230.0,111220.0,0.0633]
[1752135101535,1.64570294,111230.0,111220.0,0.07985]
[1752135102337,1.62276294,111230.0,111220.0,0.07985]
[1752135102537,1.64570294,111230.0,111220.0,0.07985]
[1752135103139,1.40551621,111230.0,111220.0,0.07985]
[1752135103337,0.99804294,111230.0,111220.0,0.0633]
[1752135103632,1.53198234,111230.0,111220.0,0.07985]
[1752135103831,1.61241992,111230.0,111220.0,0.07985]
[1752135104934,1.63535992,111230.0,111220.0,0.07985]
[1752135108538,1.61241992,111230.0,111220.0,0.07985]
[1752135108740,1.63613992,111230.0,111220.0,0.07985]
[1752135110441,1.55570234,111230.0,111220.0,0.07985]
[1752135110842,1.53944234,111230.0,111220.0,0.0633]
[1752135111343,1.29925561,111230.0,111220.0,0.0633]
[1752135111546,1.53944234,111230.0,111220.0,0.0633]
[1752135112348,1.53944234,111230.0,111220.0,0.07882]
[1752135112547,1.64696294,111230.0,111220.0,0.07882]
[1752135117761,1.61319578,111230.0,111220.0,0.07882]
[1752135117942,1.86647518,111230.0,111220.0,0.07882]
[1752135120854,1.86647518,111230.0,111220.0,0.0633]
[1752135121055,1.89927518,111230.0,111220.0,0.0633]
[1752135122755,1.91786146,111230.0,111220.0,0.0633]
[1752135123253,1.19626146,111230.0,111220.0,0.0633]
[1752135123553,1.91786146,111230.0,111220.0,0.0633]
[1752135125255,1.19626146,111230.0,111220.0,0.0633]
[1752135125457,1.91786146,111230.0,111220.0,0.0633]
[1752135131157,1.91786146,111230.0,111220.0,0.07702292]
[1752135133657,1.89414146,111230.0,111220.0,0.07702292]
[1752135133956,1.65395473,111230.0,111220.0,0.07702292]
[1752135134158,1.89414146,111230.0,111220.0,0.07702292]
[1752135134559,1.89414146,111230.0,111220.0,0.07691815]
[1752135134859,1.89414146,111230.0,111220.0,0.0633]
[1752135135757,1.91786146,111230.0,111220.0,0.0633]
[1752135135954,1.19626146,111230.0,111220.0,0.0633]
[1752135136160,1.91786146,111230.0,111220.0,0.0633]
[1752135137362,1.91786146,111230.0,111220.0,0.07691815]
[1752135137659,1.91786146,111230.0,111220.0,0.0633]
[1752135139258,1.29266146,111230.0,111220.0,0.0633]
[1752135139462,1.91526146,111230.0,111220.0,0.0769426]
[1752135139652,1.29266146,111230.0,111220.0,0.0769426]
[1752135140052,1.91526146,111230.0,111220.0,0.0769426]
[1752135140757,1.89154146,111230.0,111220.0,0.0769426]
[1752135140963,1.91430146,111230.0,111220.0,0.0769426]
[1752135141860,1.91430146,111230.0,111220.0,0.0633]
[1752135144372,2.05490285,111230.0,111220.0,0.0633]
[1752135147462,2.03214285,111230.0,111220.0,0.0633]
[1752135147769,2.05490285,111230.0,111220.0,0.0633]
[1752135156480,1.81471612,111230.0,111220.0,0.0633]
[1752135156679,2.05490285,111230.0,111220.0,0.0633]
[1752135161581,2.02175963,111230.0,111220.0,0.0633]
[1752135161785,2.05490444,111230.0,111220.0,0.0633]
[1752135162587,1.33330444,111230.0,111220.0,0.0633]
[1752135162790,2.05490444,111230.0,111220.0,0.0633]
[1752135163590,1.33330444,111230.0,111220.0,0.0633]
[1752135163789,2.05490444,111230.0,111220.0,0.0633]
[1752135168791,2.29509117,111230.0,111220.0,0.0633]
[1752135169596,2.29509117,111230.0,111220.0,0.07672171]
[1752135170292,2.29509117,111230.0,111220.0,0.07672185]
[1752135170891,1.81471771,111230.0,111220.0,0.07672185]
[1752135171092,2.29509117,111230.0,111220.0,0.07672185]
[1752135171781,2.05490444,111230.0,111220.0,0.07672185]
[1752135171985,1.81471771,111230.0,111220.0,0.07672185]
[1752135172288,2.29509117,111230.0,111220.0,0.07672185]
[1752135172785,2.02175963,111230.0,111220.0,0.07672185]
[1752135172991,1.91577146,111230.0,111220.0,0.07672185]
[1752135174681,1.91577146,111230.0,111220.0,0.0633]
[1752135175292,1.91577146,111230.0,111220.0,0.07665662]
[1752135176392,1.91577146,111230.0,111220.0,0.0633]
[1752135176796,2.15595819,111230.0,111220.0,0.0633]
[1752135178396,2.29655819,111230.0,111220.0,0.0633]
[1752135181600,1.79195473,111230.0,111220.0,0.0633]
[1752135181894,2.29655819,111230.0,111220.0,0.0633]
[1752135182696,2.05637146,111230.0,111220.0,0.0633]
[1752135183100,1.81618473,111230.0,111220.0,0.0633]
[1752135183399,2.05637146,111230.0,111220.0,0.0633]
[1752135183599,2.29655819,111230.0,111220.0,0.0633]
[1752135185203,2.03214146,111230.0,111220.0,0.0633]
[1752135185397,2.05637146,111230.0,111220.0,0.0633]
[1752135200712,2.03214146,111230.0,111220.0,0.0633]
[1752135200910,2.05519146,111230.0,111220.0,0.0633]
[1752135204715,2.05519146,111230.0,111220.0,0.07696318]
[1752135207219,2.05519146,111230.0,111220.0,0.0633]
[1752135211037,2.05519146,111230.0,111220.0,0.07685362]
[1752135211234,2.05519146,111230.0,111220.0,0.0633]
[1752135212439,2.05519146,111230.0,111220.0,0.07685417]
[1752135217236,2.05519146,111230.0,111220.0,0.0633]
[1752135218137,1.81500473,111230.0,111220.0,0.0633]
[1752135218338,1.94773413,111230.0,111220.0,0.0633]
[1752135218533,1.94773413,111230.0,111220.0,0.07678947]
[1752135221035,1.7075474,111230.0,111220.0,0.07678947]
[1752135221234,1.94773413,111230.0,111220.0,0.07678947]
[1752135224233,1.22613413,111230.0,111220.0,0.07678947]
[1752135224438,1.94773413,111230.0,111220.0,0.07678947]
[1752135225838,2.05519146,111230.0,111220.0,0.07678947]
[1752135226040,2.05519146,111230.0,111220.0,0.07672372]
[1752135226239,2.05519146,111230.0,111220.0,0.0633]
[1752135228444,2.05519146,111230.0,111220.0,0.07707056]
[1752135230044,2.05319146,111230.0,111220.0,0.07707056]
[1752135230344,2.05519146,111230.0,111220.0,0.07807056]
[1752135230744,2.05505146,111230.0,111220.0,0.07807056]
[1752135231244,2.05605146,111230.0,111220.0,0.0643]
[1752135233549,2.05605146,111230.0,111220.0,0.07791711]
[1752135235047,2.05605146,111230.0,111220.0,0.0643]
[1752135235848,2.29623819,111230.0,111220.0,0.0643]
[1752135236450,2.29623819,111230.0,111220.0,0.07785132]
[1752135239553,2.05605146,111230.0,111220.0,0.07785132]
[1752135239747,2.29623819,111230.0,111220.0,0.07785132]
[1752135240251,1.57463819,111230.0,111220.0,0.07785132]
[1752135240552,2.29623819,111230.0,111220.0,0.07785132]
[1752135240743,2.27332819,111230.0,111220.0,0.07785132]
[1752135240942,2.29623819,111230.0,111220.0,0.07785132]
[1752135242256,2.05605146,111230.0,111220.0,0.07785132]
[1752135245255,2.03314704,111230.0,111220.0,0.0643]
[1752135245454,2.05605704,111230.0,111220.0,0.0643]
[1752135251357,2.26941486,111230.0,111220.0,0.001]
[1752135251556,2.30101486,111230.0,111220.0,0.001]
[1752135252358,2.30101486,111230.0,111220.0,0.0327]
[1752135253253,2.06082813,111230.0,111220.0,0.0327]
[1752135258161,2.08765704,111230.0,111220.0,0.0327]
[1752135259764,2.32784377,111230.0,111220.0,0.0327]
[1752135260866,2.32811377,111230.0,111220.0,0.0327]
[1752135263473,2.08792704,111230.0,111220.0,0.0327]
[1752135264370,1.84774031,111230.0,111220.0,0.0327]
[1752135264668,2.08792704,111230.0,111220.0,0.0639]
[1752135266265,2.05478437,111230.0,111220.0,0.0639]
[1752135266472,1.94732704,111230.0,111220.0,0.0639]
[1752135266676,1.70714031,111230.0,111220.0,0.0639]
[1752135267171,1.92414704,111230.0,111220.0,0.0639]
[1752135267371,1.94732704,111230.0,111220.0,0.0639]
[1752135268061,1.70714031,111230.0,111220.0,0.0639]
[1752135268261,1.94732704,111230.0,111220.0,0.0639]
[1752135270967,1.70714031,111230.0,111220.0,0.0639]
[1752135271270,1.94732704,111230.0,111220.0,0.0639]
[1752135275671,1.95132704,111230.0,111220.0,0.0639]
[1752135276573,1.91972704,111230.0,111220.0,0.0639]
[1752135281578,1.89654704,111230.0,111220.0,0.0639]
[1752135283687,1.91972704,111230.0,111220.0,0.0639]
[1752135285987,1.67954031,111230.0,111220.0,0.0639]
[1752135286187,1.91972704,111230.0,111220.0,0.0639]
[1752135288793,1.67954031,111230.0,111220.0,0.0639]
[1752135288993,1.91972704,111230.0,111220.0,0.0639]
[1752135290395,1.67954031,111230.0,111220.0,0.0639]
[1752135290694,1.89654704,111230.0,111220.0,0.0639]
[1752135290993,1.91991704,111230.0,111220.0,0.0639]
[1752135291195,1.19831704,111230.0,111220.0,0.0639]
[1752135291396,1.91991704,111230.0,111220.0,0.0639]
[1752135292798,2.06025715,111230.0,111220.0,0.0639]
[1752135295696,1.82007042,111230.0,111220.0,0.0639]
[1752135295998,2.06025715,111230.0,111220.0,0.0639]
[1752135301194,1.81839042,111230.0,111220.0,0.30408673]
[1752135301603,2.05857715,111230.0,111220.0,0.30408673]
[1752135301803,2.05857715,111230.0,111220.0,0.0639]
[1752135302403,2.05857715,111230.0,111220.0,0.30408673]
[1752135303006,2.05857715,111230.0,111220.0,0.0639]
[1752135303205,2.05853715,111230.0,111220.0,0.30408673]
[1752135303811,1.81835042,111230.0,111220.0,0.30408673]
[1752135304007,2.05853715,111230.0,111220.0,0.30408673]
[1752135304811,2.03516715,111230.0,111220.0,0.30408673]
[1752135305111,2.05853715,111230.0,111220.0,0.30408673]
[1752135305698,1.43765715,111230.0,111220.0,0.30408673]
[1752135305903,2.05849715,111230.0,111220.0,0.30408673]
[1752135306208,1.19747042,111230.0,111220.0,0.30408673]
[1752135306410,2.05849715,111230.0,111220.0,0.30408673]
[1752135307313,2.05849715,111230.0,111220.0,0.31735552]
[1752135308406,0.19443071,111230.0,111220.0,1.37959728]
[1752135308600,0.83078071,111230.0,111220.0,1.12614176]
[1752135309002,0.75020362,111230.0,111220.0,1.12614176]
[1752135309201,0.75020362,111230.0,111220.0,1.36632849]
[1752135309202,0.12944362,111230.0,111220.0,1.36632849]
[1752135309404,0.75016362,111230.0,111220.0,1.12614176]
[1752135309815,0.92992582,111230.0,111220.0,1.12614176]
[1752135310508,0.75016362,111230.0,111220.0,1.12614176]
[1752135310816,0.91433582,111230.0,111220.0,1.10972176]
[1752135311113,0.29361582,111230.0,111220.0,1.10972176]
[1752135312112,0.29361582,111230.0,111220.0,1.08485176]
[1752135312309,0.29361582,111230.0,111220.0,1.10972176]
[1752135314213,0.11385362,111230.0,111220.0,1.10972176]
[1752135317324,0.11385362,111230.0,111220.0,1.10944176]
[1752135319414,0.11369727,111230.0,111220.0,1.10944176]
[1752135320420,0.11169727,111230.0,111220.0,1.10944176]
[1752135320720,0.11169727,111230.0,111220.0,1.08485176]
[1752135321020,0.11169727,111230.0,111220.0,1.10944176]
[1752135321413,0.10969727,111230.0,111220.0,1.10944176]
[1752135321617,0.62048,111240.0,111230.0,0.3145605]
[1752135321921,0.8152967,111240.0,111230.0,0.68076693]
[1752135323523,0.8172967,111240.0,111230.0,0.68076693]
[1752135323822,0.8022267,111240.0,111230.0,0.66528693]
[1752135324022,0.8022267,111240.0,111230.0,0.70535693]
[1752135324220,0.01907,111240.0,111230.0,0.70535693]
[1752135324416,0.004,111240.0,111230.0,1.30634366]
[1752135324615,0.004,111240.0,111230.0,1.06615693]
[1752135324816,0.01907,111240.0,111230.0,1.06615693]
[1752135325517,0.004,111240.0,111230.0,1.05067693]
[1752135325810,0.01907,111240.0,111230.0,1.05067693]
[1752135326425,0.004,111240.0,111230.0,1.05067693]
[1752135327023,0.01907,111240.0,111230.0,1.05067693]
[1752135327224,0.01907,111240.0,111230.0,1.29086366]
[1752135327418,0.01907,111240.0,111230.0,2.53162366]
[1752135328926,0.004,111240.0,111230.0,2.50703366]
[1752135329125,0.004,111240.0,111230.0,2.53162366]
[1752135331223,0.002,111240.0,111230.0,2.53162366]
[1752135332027,0.2246762,111250.0,111240.0,0.1797461]
[1752135332227,0.2246762,111250.0,111240.0,0.74019956]
[1752135332228,0.2397462,111250.0,111240.0,0.74019956]
[1752135332426,0.2397462,111250.0,111240.0,0.76478956]
[1752135332928,0.1948137,111250.0,111240.0,0.76478956]
[1752135333128,0.1958137,111250.0,111240.0,0.76478956]
[1752135333734,0.22762967,111250.0,111240.0,0.76478956]
[1752135334232,0.22762967,111250.0,111240.0,0.2844161]
[1752135334426,0.22762967,111250.0,111240.0,0.76478956]
[1752135335225,0.04788597,111250.0,111240.0,0.76478956]
[1752135335531,0.04788597,111250.0,111240.0,1.12558956]
[1752135336933,0.04988597,111250.0,111240.0,1.12558956]
[1752135337235,0.03481597,111250.0,111240.0,1.12558956]
[1752135337924,0.03481597,111250.0,111240.0,1.36577629]
[1752135338131,0.03481597,111250.0,111240.0,1.12558956]
[1752135338825,0.03381597,111250.0,111240.0,1.12658956]
[1752135339128,0.00013507,111260.0,111250.0,0.1807299]
[1752135339327,0.00013507,111260.0,111250.0,2.30798336]
[1752135339529,0.00013507,111260.0,111250.0,2.33257336]
[1752135340330,0.00013507,111260.0,111250.0,2.34935758]
[1752135340735,0.00013507,111260.0,111250.0,2.30928758]
[1752135340930,0.00013507,111260.0,111250.0,2.33387758]
[1752135341438,0.00013507,111260.0,111250.0,1.85350412]
[1752135341639,0.00013507,111260.0,111250.0,2.33387758]
[1752135341934,0.00013507,111260.0,111250.0,2.09369085]
[1752135343332,0.00013507,111260.0,111250.0,1.85350412]
[1752135343528,0.00013507,111260.0,111250.0,2.09369085]
[1752135348737,0.00013507,111260.0,111250.0,2.33387758]
[1752135350736,0.00013507,111260.0,111250.0,2.30928758]
[1752135350936,0.00013507,111260.0,111250.0,2.33355758]
[1752135351138,0.00013507,111260.0,111250.0,2.33555758]
[1752135351827,0.03165345,111260.0,111250.0,2.33755758]
[1752135352030,0.471021,111280.0,111270.0,0.1796976]
[1752135352227,0.39432061,111280.0,111270.0,1.91756502]
[1752135352535,0.03352061,111280.0,111270.0,2.31086502]
[1752135353248,0.66865344,111290.0,111280.0,0.1796815]
[1752135353249,0.01242,111290.0,111280.0,0.1796815]
[1752135353433,0.01242,111290.0,111280.0,1.05085496]
[1752135354234,0.6954673,111310.0,111300.0,0.1806492]
[1752135354434,0.6954673,111310.0,111300.0,0.66102266]
[1752135354635,0.7104773,111310.0,111300.0,0.49071593]
[1752135354839,0.7104773,111310.0,111300.0,0.2505292]
[1752135356337,0.78360854,111310.0,111300.0,0.2106492]
[1752135356538,1.02344066,111310.0,111300.0,0.1962592]
[1752135356939,1.02344066,111310.0,111300.0,0.1806492]
[1752135357239,0.78360854,111310.0,111300.0,0.1962592]
[1752135357432,1.02344066,111310.0,111300.0,0.1962592]
[1752135357935,1.02544066,111310.0,111300.0,0.1962592]
[1752135358238,0.74961767,111310.0,111300.0,0.1962592]
[1752135360041,0.67748643,111310.0,111300.0,0.1962592]
[1752135360237,0.63257823,111310.0,111300.0,0.1962592]
[1752135360748,0.63257823,111310.0,111300.0,0.2205292]
[1752135361143,0.63257823,111310.0,111300.0,0.1806492]
[1752135361443,0.63257823,111310.0,111300.0,0.2205292]
[1752135361640,0.63257823,111310.0,111300.0,0.2049192]
[1752135361848,0.63257823,111310.0,111300.0,0.2205292]
[1752135363040,1.51442645,111310.0,111300.0,0.01661]
[1752135363344,1.51442645,111310.0,111300.0,0.001]
[1752135364142,1.51442645,111310.0,111300.0,0.1806492]
[1752135364748,1.51442645,111310.0,111300.0,0.01661]